bitfinex-derivatives/quotes_BTCF0:USTF0_20241117
["timestamp","ask_amount","ask_price","bid_price","bid_amount"]
[1731851034449,0.0051,90530.0,90529.0,0.055228]
[1731851034650,0.00072,90546.0,90529.0,0.055228]
[1731851034651,0.00013091,90531.0,90529.0,0.050128]
[1731851035155,0.00013091,90531.0,90530.0,0.00013852]
[1731851035450,0.00013091,90531.0,90530.0,0.11059975]
[1731851037050,0.00013091,90531.0,90530.0,0.44199975]
[1731851038051,0.00013091,90531.0,90530.0,0.00013852]
[1731851040852,0.16503657,90531.0,90530.0,0.00013852]
[1731851041252,0.00013091,90531.0,90530.0,0.00013852]
[1731851041763,0.00013091,90531.0,90529.0,0.25037493]
[1731851042156,0.00013091,90531.0,90530.0,0.11046001]
[1731851042551,0.00013091,90531.0,90530.0,0.11059398]
[1731851042748,0.00013091,90531.0,90530.0,0.44199398]
[1731851042953,0.00013091,90531.0,90530.0,0.11059398]
[1731851043448,0.00013091,90531.0,90530.0,0.44199398]
[1731851044051,0.16490566,90556.0,90530.0,0.44199398]
[1731851044252,0.166563,90558.0,90556.0,0.055211]
[1731851044451,0.00165734,90558.0,90556.0,0.055211]
[1731851045159,0.00165734,90558.0,90557.0,0.11042768]
[1731851045963,9.223e-05,90563.0,90562.0,0.055208]
[1731851046148,9.223e-05,90563.0,90562.0,0.416008]
[1731851046354,0.3608,90571.0,90562.0,0.416008]
[1731851046355,0.0331,90583.0,90562.0,0.747288]
[1731851046555,0.0331,90583.0,90571.0,0.3608]
[1731851046756,0.055192,90588.0,90571.0,0.3608]
[1731851046953,0.39238,90589.0,90584.0,0.055194]
[1731851046954,0.36148,90589.0,90584.0,0.055194]
[1731851047258,0.3608,90589.0,90584.0,0.055194]
[1731851048054,0.00011457,90593.0,90584.0,0.1656857]
[1731851048760,0.00011457,90593.0,90592.0,0.055189]
[1731851049172,0.00011457,90593.0,90584.0,0.1104917]
[1731851049173,0.055193,90587.0,90584.0,9.754e-05]
[1731851049462,0.00011457,90593.0,90584.0,9.754e-05]
[1731851049463,0.3608,90585.0,90584.0,9.754e-05]
[1731851051054,0.3608,90585.0,90574.0,0.261]
[1731851051055,0.0552,90575.0,90574.0,0.261]
[1731851052168,0.055204,90568.0,90567.0,0.0051]
[1731851052373,0.055206,90565.0,90563.0,0.0001396]
[1731851054578,0.055206,90565.0,90563.0,0.0553466]
[1731851055059,0.3608,90566.0,90564.0,0.49686515]
[1731851055262,0.3608,90575.0,90574.0,0.0552]
[1731851055655,0.055192,90589.0,90564.0,0.055206]
[1731851055856,0.36091457,90593.0,90574.0,0.11041915]
[1731851055857,0.41610357,90593.0,90574.0,0.11041915]
[1731851056159,0.41610357,90593.0,90571.0,0.3608]
[1731851056160,0.36167457,90593.0,90571.0,0.3608]
[1731851056366,0.05519,90591.0,90575.0,0.11040635]
[1731851056562,0.36091457,90593.0,90565.0,0.57]
[1731851056563,0.3608,90585.0,90578.0,0.055198]
[1731851056756,0.00011457,90593.0,90574.0,0.0552]
[1731851056757,0.055196,90582.0,90574.0,0.0552]
[1731851056958,0.3608,90584.0,90566.0,0.11040635]
[1731851056959,0.055198,90578.0,90566.0,0.11040635]
[1731851057165,0.055198,90578.0,90563.0,0.0001396]
[1731851057166,0.055204,90568.0,90563.0,0.0001396]
[1731851057477,0.3608,90572.0,90563.0,0.0553456]
[1731851057662,0.416002,90572.0,90564.0,0.055206]
[1731851058270,0.416002,90572.0,90563.0,0.0001396]
[1731851058271,0.055206,90565.0,90563.0,0.0001396]
[1731851058464,0.3608,90564.0,90563.0,0.0001396]
[1731851058660,0.3608,90564.0,90553.0,0.0051]
[1731851058661,0.05521,90558.0,90553.0,0.0051]
[1731851058878,0.05521,90558.0,90546.0,0.0051]
[1731851059571,0.05521,90558.0,90556.0,9.496e-05]
[1731851062076,0.3608,90563.0,90559.0,0.055209]
[1731851062268,0.3608,90563.0,90562.0,0.055208]
[1731851062872,0.3608,90563.0,90556.0,9.496e-05]
[1731851063162,0.3608,90571.0,90558.0,0.11042097]
[1731851063766,0.3608,90571.0,90570.0,0.055203]
[1731851064263,0.3608,90571.0,90570.0,0.16562154]
[1731851064765,0.00165673,90584.0,90583.0,0.055195]
[1731851065467,0.00165673,90584.0,90583.0,0.16560622]
[1731851065685,0.00165673,90584.0,90583.0,0.49680622]
[1731851065861,0.00165673,90584.0,90583.0,0.11041122]
[1731851066064,0.00165673,90584.0,90583.0,0.57]
[1731851066862,0.055195,90583.0,90576.0,0.055199]
[1731851067578,0.055195,90583.0,90575.0,0.055199]
[1731851068070,0.055195,90583.0,90570.0,0.57]
[1731851068071,0.055195,90583.0,90572.0,0.11039538]
[1731851068279,0.00165673,90584.0,90579.0,0.055197]
[1731851068571,0.00165673,90584.0,90570.0,0.57]
[1731851068572,0.00165673,90584.0,90582.0,0.055195]
[1731851069075,0.00165673,90584.0,90570.0,0.57]
[1731851069276,0.00165673,90584.0,90575.0,0.055199]
[1731851069468,0.00165673,90584.0,90576.0,0.055199]
[1731851069776,0.00165673,90584.0,90568.0,0.02208971]
[1731851069777,0.055201,90573.0,90564.0,0.055206]
[1731851069987,0.3608,90583.0,90557.0,0.19794218]
[1731851069988,0.055202,90572.0,90557.0,0.19794218]
[1731851070170,0.055204,90568.0,90564.0,0.11039964]
[1731851070369,0.3608,90575.0,90557.0,5.025e-05]
[1731851070370,0.3608,90566.0,90558.0,0.57]
[1731851070564,0.3608,90566.0,90557.0,5.025e-05]
[1731851070978,0.05521,90559.0,90557.0,5.025e-05]
[1731851071464,0.3608,90558.0,90557.0,5.025e-05]
[1731851072071,0.3608,90566.0,90557.0,0.11047732]
[1731851072489,0.055207,90563.0,90557.0,5.025e-05]
[1731851072681,0.055207,90563.0,90557.0,0.05526025]
[1731851072972,0.3608,90566.0,90564.0,0.055206]
[1731851073182,0.36245673,90584.0,90562.0,0.3608]
[1731851073375,0.36245673,90584.0,90575.0,0.055199]
[1731851073570,0.41765073,90584.0,90576.0,0.055199]
[1731851074069,0.41765073,90584.0,90566.0,0.0051]
[1731851074269,0.41765073,90584.0,90562.0,0.3608]
[1731851074488,0.41765073,90584.0,90576.0,0.055198]
[1731851074673,0.41765073,90584.0,90562.0,0.3608]
[1731851074674,0.36245673,90584.0,90566.0,0.0051]
[1731851074871,0.36245673,90584.0,90572.0,0.055201]
[1731851075074,0.055196,90581.0,90573.0,0.055201]
[1731851075465,0.36245673,90584.0,90564.0,0.0051]
[1731851075671,0.3608,90576.0,90560.0,0.19789193]
[1731851075979,0.055202,90572.0,90565.0,0.57]
[1731851076176,0.055202,90572.0,90557.0,5.025e-05]
[1731851076475,0.3608,90576.0,90559.0,0.11041427]
[1731851076674,0.3608,90576.0,90567.0,0.055204]
[1731851076874,0.0552,90574.0,90567.0,0.055204]
[1731851077270,0.3608,90576.0,90560.0,0.57]
[1731851077475,0.3608,90576.0,90574.0,0.0552]
[1731851078474,0.36313673,90584.0,90583.0,0.055195]
[1731851078667,0.36245673,90584.0,90583.0,0.055195]
[1731851079872,0.00165673,90584.0,90583.0,0.625195]
[1731851080467,0.00011457,90593.0,90592.0,0.055189]
[1731851081181,0.00011457,90593.0,90583.0,0.57]
[1731851081182,0.055193,90587.0,90583.0,0.57]
[1731851081378,0.055198,90579.0,90576.0,0.055199]
[1731851081887,0.3608,90584.0,90566.0,0.20299193]
[1731851081888,0.055199,90576.0,90571.0,0.055202]
[1731851082084,0.3608,90584.0,90559.0,0.0051]
[1731851082085,0.055208,90562.0,90559.0,0.0051]
[1731851082275,0.05521,90558.0,90557.0,5.025e-05]
[1731851082969,0.416006,90564.0,90559.0,0.055209]
[1731851083171,0.05521,90558.0,90557.0,5.025e-05]
[1731851085979,0.3608,90563.0,90557.0,5.025e-05]
[1731851086180,0.055209,90560.0,90557.0,0.05526025]
[1731851087390,0.05521,90558.0,90557.0,5.025e-05]
[1731851090282,0.38649,90558.0,90557.0,5.025e-05]
[1731851090486,0.055217,90547.0,90546.0,0.0051]
[1731851090694,0.85359703,90547.0,90532.0,0.0051]
[1731851090882,0.3608,90536.0,90525.0,0.0051]
[1731851091086,0.055228,90529.0,90528.0,0.055228]
[1731851091493,0.055228,90529.0,90528.0,0.05534128]
[1731851092379,0.3608,90536.0,90528.0,0.00011328]
[1731851092580,0.055224,90535.0,90530.0,0.055227]
[1731851093079,0.055224,90535.0,90528.0,0.00011328]
[1731851093080,0.3608,90536.0,90534.0,0.055224]
[1731851093987,0.3608,90535.0,90534.0,0.055224]
[1731851094787,0.055227,90530.0,90528.0,0.00011328]
[1731851095187,0.00012336,90529.0,90528.0,0.05534128]
[1731851095489,0.00012336,90529.0,90528.0,0.00011328]
[1731851099890,0.33152336,90529.0,90528.0,0.00011328]
[1731851100087,0.055228,90528.0,90515.0,0.0051]
[1731851100297,0.416036,90516.0,90508.0,0.0051]
[1731851100491,0.416036,90516.0,90513.0,0.055237]
[1731851100785,0.3608,90516.0,90505.0,0.57]
[1731851100991,0.3608,90516.0,90507.0,0.055241]
[1731851101181,0.055236,90515.0,90513.0,0.00014035]
[1731851103005,0.3608,90516.0,90514.0,0.055236]
[1731851103291,0.3608,90516.0,90513.0,0.00014035]
[1731851103485,0.055237,90514.0,90513.0,0.00014035]
[1731851103685,0.3608,90516.0,90513.0,0.00014035]
[1731851103890,0.3608,90516.0,90515.0,0.055236]
[1731851104394,0.00012336,90529.0,90523.0,0.055231]
[1731851104395,0.3608,90524.0,90523.0,0.055231]
[1731851104693,0.3608,90524.0,90513.0,0.00014035]
[1731851104694,0.3608,90524.0,90514.0,0.11047953]
[1731851104880,0.055232,90523.0,90517.0,0.055234]
[1731851105083,0.055232,90523.0,90513.0,0.00014035]
[1731851105291,0.3608,90524.0,90521.0,0.055232]
[1731851105588,0.3608,90524.0,90522.0,0.055232]
[1731851105793,0.3608,90524.0,90515.0,0.055236]
[1731851105794,0.055233,90521.0,90515.0,0.055236]
[1731851105985,0.3608,90524.0,90519.0,0.055233]
[1731851106189,0.416031,90524.0,90519.0,0.055233]
[1731851106585,0.3608,90524.0,90516.0,0.57]
[1731851106791,0.3608,90524.0,90513.0,0.00014035]
[1731851106792,0.055235,90517.0,90513.0,0.00014035]
[1731851106984,0.055237,90514.0,90513.0,0.00014035]
[1731851107593,0.055237,90514.0,90477.0,0.006]
[1731851107594,0.055245,90500.0,90477.0,0.006]
[1731851107895,0.055263,90472.0,90468.0,0.055264]
[1731851108083,0.3608,90471.0,90468.0,0.055264]
[1731851108279,0.3608,90471.0,90469.0,0.055264]
[1731851108795,0.3608,90471.0,90470.0,9.856e-05]
[1731851109995,0.3608,90482.0,90481.0,0.055257]
[1731851110397,0.3608,90494.0,90493.0,0.05525]
[1731851111491,0.3608,90494.0,90482.0,0.57]
[1731851111695,0.3608,90494.0,90485.0,0.055254]
[1731851111696,0.055252,90490.0,90485.0,0.055254]
[1731851112218,0.3608,90494.0,90482.0,0.57]
[1731851112496,0.055255,90484.0,90482.0,0.57]
[1731851112702,0.055259,90478.0,90472.0,0.055262]
[1731851112999,0.3608,90475.0,90470.0,9.856e-05]
[1731851113197,0.055261,90474.0,90470.0,9.856e-05]
[1731851113500,0.3608,90475.0,90473.0,0.055262]
[1731851114100,0.416055,90485.0,90484.0,0.055255]
[1731851114101,0.36148,90485.0,90484.0,0.055255]
[1731851114291,0.3608,90485.0,90484.0,0.055255]
[1731851115198,0.3608,90485.0,90478.0,0.055259]
[1731851115395,0.055258,90480.0,90478.0,0.055259]
[1731851115593,0.055261,90475.0,90470.0,9.856e-05]
[1731851115900,0.3608,90485.0,90483.0,0.055255]
[1731851117208,0.3608,90485.0,90484.0,0.11582461]
[1731851117897,0.3608,90485.0,90484.0,0.68582461]
[1731851119303,0.13199703,90510.0,90484.0,1.01738461]
[1731851119495,0.3608,90511.0,90492.0,0.3608]
[1731851119694,0.3608,90511.0,90510.0,0.055239]
[1731851119908,0.3108,90511.0,90510.0,0.06053279]
[1731851120105,0.36156,90519.0,90510.0,0.11580995]
[1731851120404,0.49279703,90530.0,90517.0,0.055235]
[1731851120405,0.055231,90525.0,90517.0,0.055235]
[1731851120598,0.055231,90525.0,90511.0,0.57]
[1731851120804,0.13199703,90534.0,90528.0,0.055228]
[1731851121097,0.49279703,90535.0,90528.0,0.055228]
[1731851121300,0.00068,90535.0,90528.0,0.05534637]
[1731851121494,0.13199703,90550.0,90545.0,0.055217]
[1731851121695,0.13199703,90552.0,90545.0,0.055217]
[1731851121910,0.13199703,90551.0,90546.0,0.00533283]
[1731851122099,0.055216,90548.0,90547.0,0.00533283]
[1731851122402,0.0001016,90548.0,90547.0,0.00533283]
[1731851122805,0.0001016,90548.0,90547.0,0.06054983]
[1731851124704,0.0051,90561.0,90547.0,0.1157721]
[1731851124899,0.0051,90566.0,90565.0,0.055206]
[1731851125100,0.02211652,90568.0,90565.0,0.00533283]
[1731851125301,0.0552,90575.0,90566.0,0.00533283]
[1731851125603,0.055195,90583.0,90568.0,0.055204]
[1731851125800,0.055195,90583.0,90562.0,0.3608]
[1731851125801,0.00012975,90574.0,90572.0,0.055201]
[1731851126000,0.00012975,90574.0,90573.0,0.00533283]
[1731851127607,0.00012975,90574.0,90573.0,0.01393796]
[1731851128097,0.05532975,90574.0,90573.0,0.01393796]
[1731851128295,0.055208,90561.0,90539.0,0.16192]
[1731851128513,0.3659,90566.0,90546.0,0.01397602]
[1731851128699,0.055215,90550.0,90547.0,0.00537483]
[1731851128996,0.3608,90566.0,90545.0,0.055218]
[1731851128997,0.0051,90562.0,90545.0,0.055218]
[1731851129207,0.3608,90566.0,90545.0,0.055218]
[1731851129518,0.055213,90554.0,90545.0,0.055218]
[1731851129704,0.3608,90566.0,90543.0,0.3608]
[1731851129705,0.055208,90561.0,90543.0,0.3608]
[1731851130007,0.0051,90563.0,90562.0,0.055208]
[1731851130204,0.00012975,90574.0,90569.0,0.055203]
[1731851130901,0.00012975,90574.0,90570.0,0.055202]
[1731851131203,0.00012975,90574.0,90572.0,0.055201]
[1731851131402,0.055202,90572.0,90565.0,0.055205]
[1731851131603,0.055202,90572.0,90567.0,0.055204]
[1731851132111,0.00012975,90574.0,90557.0,0.11041]
[1731851132415,0.00012975,90574.0,90556.0,0.68041244]
[1731851132603,0.00012975,90574.0,90573.0,0.055201]
[1731851133307,0.00012975,90574.0,90567.0,0.055204]
[1731851133497,0.055201,90573.0,90567.0,0.055204]
[1731851133695,0.00012975,90574.0,90557.0,0.11040756]
[1731851133907,0.00012975,90574.0,90564.0,0.3608]
[1731851134302,0.00012975,90574.0,90572.0,0.055201]
[1731851135407,0.00012975,90574.0,90573.0,0.11040817]
[1731851136007,0.00012975,90574.0,90557.0,0.02210375]
[1731851136310,0.00012975,90574.0,90558.0,0.16561756]
[1731851136311,0.055205,90566.0,90558.0,0.16561756]
[1731851136510,0.055202,90572.0,90558.0,0.11040756]
[1731851136811,0.055202,90571.0,90563.0,0.055207]
[1731851137005,0.055202,90571.0,90554.0,0.02210375]
[1731851137202,0.00012975,90574.0,90568.0,0.055203]
[1731851137400,0.00012975,90574.0,90557.0,0.05521]
[1731851137597,0.05533075,90574.0,90564.0,0.055206]
[1731851137810,0.05533075,90574.0,90567.0,0.055204]
[1731851138000,0.05533075,90574.0,90565.0,0.055205]
[1731851138200,0.05533075,90574.0,90554.0,0.02210375]
[1731851138201,0.00012975,90574.0,90572.0,0.055201]
[1731851139009,0.055202,90572.0,90564.0,0.055206]
[1731851139210,0.055204,90568.0,90562.0,0.055207]
[1731851139400,0.3608,90569.0,90556.0,0.11040817]
[1731851139606,0.3608,90569.0,90554.0,0.055212]
[1731851140013,0.055211,90557.0,90554.0,0.055212]
[1731851140511,0.055208,90562.0,90556.0,0.055211]
[1731851140725,0.055217,90546.0,90545.0,0.3608]
[1731851141008,0.3608,90558.0,90533.0,0.055225]
[1731851141009,0.3608,90549.0,90533.0,0.055225]
[1731851141207,0.3608,90549.0,90528.0,0.36091837]
[1731851141208,0.3608,90549.0,90528.0,0.00011837]
[1731851141710,0.3608,90549.0,90530.0,0.055227]
[1731851141911,0.055222,90540.0,90529.0,0.11044171]
[1731851142105,0.055222,90540.0,90535.0,0.055224]
[1731851143511,0.05522,90543.0,90538.0,0.055222]
[1731851145410,0.3608,90549.0,90529.0,0.57]
[1731851145606,0.055223,90538.0,90530.0,0.055227]
[1731851145809,0.055223,90538.0,90530.0,0.16567481]
[1731851146411,0.055223,90538.0,90531.0,0.055226]
[1731851146607,0.055223,90538.0,90530.0,0.11044781]
[1731851146825,0.055223,90538.0,90532.0,0.055226]
[1731851148407,0.3659,90549.0,90529.0,0.57]
[1731851148712,0.3659,90549.0,90536.0,0.055223]
[1731851148915,0.055221,90540.0,90536.0,0.055223]
[1731851149120,0.49279703,90549.0,90529.0,0.57]
[1731851149121,0.3608,90541.0,90529.0,0.57]
[1731851149309,0.055223,90537.0,90529.0,0.57]
[1731851149814,0.3608,90541.0,90528.0,0.00011837]
[1731851149815,0.055227,90530.0,90528.0,0.00011837]
[1731851151517,0.13199703,90540.0,90529.0,0.11046184]
[1731851151717,0.05522,90542.0,90539.0,0.3608]
[1731851152016,0.055225,90534.0,90528.0,0.05534637]
[1731851152219,0.52570566,90548.0,90528.0,0.05534637]
[1731851152220,0.13199703,90541.0,90528.0,0.05534637]
[1731851152423,0.3608,90548.0,90528.0,0.05534637]
[1731851152424,0.13199703,90539.0,90528.0,0.05534637]
[1731851152610,0.055227,90530.0,90528.0,0.05534637]
[1731851153021,0.055227,90530.0,90528.0,0.00011837]
[1731851153525,0.3608,90529.0,90528.0,0.00011837]
[1731851154222,0.49279703,90529.0,90528.0,0.00011837]
[1731851154410,0.055233,90521.0,90512.0,0.055238]
[1731851154719,0.055233,90521.0,90506.0,0.3608]
[1731851154720,0.13184077,90527.0,90526.0,0.055229]
[1731851154922,0.13184077,90533.0,90515.0,0.055236]
[1731851155226,0.055228,90528.0,90523.0,0.055231]
[1731851155517,0.0319,90538.0,90513.0,0.57]
[1731851155518,0.13184077,90536.0,90524.0,0.00011534]
[1731851155724,0.13184077,90537.0,90524.0,0.00011534]
[1731851155922,0.0332,90539.0,90524.0,0.00011534]
[1731851155923,0.13184077,90539.0,90524.0,0.00011534]
[1731851156120,0.1855,90543.0,90541.0,0.05522]
[1731851156322,0.13184077,90550.0,90532.0,0.3608]
[1731851156517,0.055221,90540.0,90536.0,0.055223]
[1731851156822,0.49264077,90551.0,90515.0,0.19789193]
[1731851157037,0.49264077,90551.0,90514.0,0.3911]
[1731851157038,0.055227,90531.0,90529.0,0.055228]
[1731851157213,0.055227,90531.0,90514.0,0.3911]
[1731851157521,0.055227,90531.0,90524.0,0.05534634]
[1731851157723,0.055227,90531.0,90525.0,0.05523]
[1731851159027,0.36658,90543.0,90524.0,0.00011534]
[1731851159028,0.13694077,90543.0,90542.0,0.05522]
[1731851159320,0.22012166,90549.0,90542.0,0.05522]
[1731851159321,0.055216,90549.0,90542.0,0.055219]
[1731851159922,0.055216,90548.0,90543.0,0.625219]
[1731851160118,0.13184077,90553.0,90530.0,0.3608]
[1731851160320,0.055218,90545.0,90535.0,0.055223]
[1731851160519,0.49264077,90551.0,90535.0,0.055223]
[1731851160520,0.05522,90542.0,90535.0,0.055223]
[1731851160721,0.05522,90542.0,90525.0,0.1486]
[1731851160722,0.055223,90537.0,90536.0,0.57]
[1731851160922,0.055223,90537.0,90525.0,0.1486]
[1731851161227,0.0051,90544.0,90526.0,0.11044171]
[1731851161435,0.055219,90544.0,90534.0,0.055224]
[1731851161618,0.13184077,90545.0,90534.0,0.055224]
[1731851161821,0.05522,90542.0,90534.0,0.055224]
[1731851162124,0.36148,90551.0,90526.0,0.57]
[1731851162125,0.13184077,90540.0,90526.0,0.57]
[1731851162323,0.055226,90532.0,90526.0,0.57]
[1731851162727,0.3608,90534.0,90524.0,0.00011534]
[1731851163025,0.05523,90525.0,90524.0,0.00011534]
[1731851164020,0.05523,90525.0,90511.0,0.3608]
[1731851164021,0.44036503,90525.0,90511.0,0.3608]
[1731851164227,0.13194945,90516.0,90501.0,0.055245]
[1731851164431,0.055247,90498.0,90494.0,0.055249]
[1731851164631,0.055247,90498.0,90495.0,0.57]
[1731851165116,0.055247,90498.0,90496.0,0.00010979]
[1731851168431,9.311e-05,90501.0,90500.0,0.055245]
[1731851169134,9.311e-05,90501.0,90496.0,0.00010979]
[1731851169434,9.311e-05,90501.0,90500.0,0.73574162]
[1731851169731,0.0051,90509.0,90507.0,0.055241]
[1731851169930,0.0051,90518.0,90516.0,0.055235]
[1731851170136,0.13194945,90529.0,90516.0,0.3608]
[1731851170322,0.0684,90533.0,90516.0,0.3608]
[1731851170323,0.0051,90533.0,90529.0,0.055228]
[1731851170526,0.41610798,90530.0,90529.0,0.57]
[1731851170725,0.41610798,90530.0,90507.0,0.3608]
[1731851170726,0.055233,90521.0,90507.0,0.3608]
[1731851171236,0.055233,90521.0,90509.0,0.11047648]
[1731851171427,0.055233,90521.0,90508.0,0.57]
[1731851171621,0.055233,90521.0,90508.0,0.68048014]
[1731851171939,0.055233,90521.0,90514.0,0.055237]
[1731851172145,0.055233,90521.0,90508.0,0.57]
[1731851172146,0.36088098,90530.0,90509.0,0.11048014]
[1731851172327,0.055239,90511.0,90508.0,0.57]
[1731851172923,0.055239,90511.0,90508.0,0.62524]
[1731851174238,0.055239,90511.0,90507.0,0.3608]
[1731851174239,0.05524,90509.0,90507.0,0.3608]
[1731851176933,0.0051,90520.0,90507.0,0.3608]
[1731851176934,0.13194945,90513.0,90507.0,0.3608]
[1731851177232,0.16493682,90518.0,90510.0,0.055239]
[1731851177233,0.055237,90514.0,90510.0,0.055239]
[1731851177424,0.13194945,90516.0,90508.0,0.05524]
[1731851177626,0.16493682,90521.0,90516.0,0.055235]
[1731851177627,0.13194945,90519.0,90516.0,0.055235]
[1731851177826,0.18718345,90519.0,90517.0,0.055235]
[1731851178223,0.16493682,90524.0,90507.0,0.3608]
[1731851178224,0.13194945,90524.0,90518.0,0.3608]
[1731851178426,8.098e-05,90530.0,90529.0,0.055228]
[1731851178726,8.098e-05,90530.0,90529.0,0.416028]
[1731851179933,8.098e-05,90530.0,90529.0,1.09648923]
[1731851180141,8.098e-05,90530.0,90529.0,0.3608]
[1731851180333,8.098e-05,90530.0,90511.0,0.3608]
[1731851180334,0.055232,90522.0,90511.0,0.3608]
[1731851180542,0.0051,90529.0,90512.0,0.57]
[1731851180735,0.0051,90529.0,90528.0,0.055228]
[1731851180941,8.098e-05,90530.0,90528.0,0.055228]
[1731851181136,8.098e-05,90530.0,90529.0,0.3608]
[1731851181342,8.098e-05,90530.0,90529.0,0.57]
[1731851181637,8.098e-05,90530.0,90529.0,0.9308]
[1731851181837,8.098e-05,90530.0,90529.0,1.04126184]
[1731851182337,8.098e-05,90530.0,90517.0,0.3608]
[1731851182532,8.098e-05,90530.0,90516.0,0.19789193]
[1731851182731,8.098e-05,90530.0,90509.0,0.3608]
[1731851182732,0.3608,90524.0,90509.0,0.3608]
[1731851182936,0.055237,90514.0,90509.0,0.3608]
[1731851183143,0.055239,90511.0,90509.0,0.3608]
[1731851183348,0.3659,90524.0,90500.0,0.25313693]
[1731851183349,0.055241,90508.0,90500.0,0.25313693]
[1731851183533,0.05524,90509.0,90496.0,0.00010979]
[1731851183739,0.05524,90509.0,90503.0,0.055243]
[1731851184241,0.0051,90516.0,90504.0,0.055243]
[1731851184439,0.0051,90516.0,90498.0,0.3608]
[1731851184440,0.13194945,90516.0,90498.0,0.3608]
[1731851184629,0.17003682,90522.0,90499.0,0.57]
[1731851184630,0.055245,90501.0,90499.0,0.57]
[1731851185234,0.3608,90507.0,90496.0,0.00010979]
[1731851185639,0.055247,90498.0,90496.0,0.00010979]
[1731851186240,0.69232,90497.0,90496.0,0.00010979]
[1731851186546,0.055256,90482.0,90478.0,0.3608]
[1731851187062,0.0051,90492.0,90479.0,0.57]
[1731851187352,0.055253,90489.0,90479.0,0.57]
[1731851187538,0.055253,90489.0,90483.0,8.544e-05]
[1731851188039,0.055251,90491.0,90483.0,8.544e-05]
[1731851188241,0.055252,90490.0,90483.0,0.05534144]
[1731851188651,0.055252,90490.0,90484.0,0.055255]
[1731851189147,0.39188,90497.0,90485.0,0.055254]
[1731851189148,0.055248,90496.0,90485.0,0.055254]
[1731851189338,0.39188,90497.0,90483.0,8.544e-05]
[1731851189540,0.13360779,90501.0,90494.0,0.055249]
[1731851189746,0.00165834,90501.0,90494.0,0.055249]
[1731851189947,0.00165834,90501.0,90499.0,0.055246]
[1731851190238,0.0051,90510.0,90509.0,0.05524]
[1731851190438,0.060333,90522.0,90509.0,0.3608]
[1731851190643,0.055233,90522.0,90509.0,0.3608]
[1731851191244,0.0051,90527.0,90500.0,0.19789193]
[1731851191457,0.0051,90527.0,90499.0,0.19789193]
[1731851191458,0.055234,90518.0,90499.0,0.19789193]
[1731851191645,0.055234,90518.0,90501.0,0.11047831]
[1731851191953,0.055234,90518.0,90507.0,0.055241]
[1731851192459,0.055234,90518.0,90501.0,0.19789193]
[1731851192644,0.0051,90521.0,90506.0,0.3608]
[1731851192842,0.0051,90526.0,90521.0,0.055232]
[1731851193054,8.098e-05,90530.0,90521.0,0.055232]
[1731851193953,8.098e-05,90530.0,90529.0,0.3608]
[1731851194154,8.098e-05,90530.0,90529.0,0.416028]
[1731851194655,8.098e-05,90530.0,90529.0,1.09648923]
[1731851194848,8.098e-05,90530.0,90529.0,1.78868923]
[1731851195055,0.00165756,90536.0,90535.0,0.055224]
[1731851195356,0.36036,90573.0,90533.0,0.14216]
[1731851195357,0.0051,90548.0,90533.0,0.14216]
[1731851195561,0.0051,90553.0,90552.0,0.055214]
[1731851195747,0.055207,90564.0,90556.0,0.055211]
[1731851195946,0.055207,90564.0,90547.0,0.3608]
[1731851195947,7.918e-05,90560.0,90557.0,0.3608]
[1731851196156,7.918e-05,90560.0,90559.0,0.055209]
[1731851196756,7.918e-05,90560.0,90559.0,0.16563485]
[1731851197751,7.918e-05,90560.0,90559.0,0.055209]
[1731851197953,7.918e-05,90560.0,90559.0,0.625209]
[1731851198260,7.918e-05,90560.0,90551.0,0.14212]
[1731851198559,0.055209,90559.0,90551.0,0.055214]
[1731851198768,0.055209,90559.0,90552.0,0.57]
[1731851199150,7.918e-05,90560.0,90548.0,0.3608]
[1731851199356,7.918e-05,90560.0,90550.0,0.02210907]
[1731851199357,0.055212,90555.0,90550.0,0.02210907]
[1731851199554,7.918e-05,90560.0,90550.0,0.02210907]
[1731851199955,0.055211,90557.0,90550.0,0.02210907]
[1731851200149,0.055212,90556.0,90549.0,0.055215]
[1731851200453,0.055214,90553.0,90544.0,0.055218]
[1731851200849,0.00517918,90560.0,90540.0,0.25255195]
[1731851200850,0.055214,90551.0,90540.0,0.25255195]
[1731851201051,0.055214,90551.0,90540.0,0.14212]
[1731851201359,0.055214,90551.0,90542.0,0.02210105]
[1731851201657,0.00517918,90560.0,90559.0,0.055209]
[1731851201859,7.918e-05,90560.0,90559.0,0.055209]
[1731851202054,7.918e-05,90560.0,90542.0,0.02210105]
[1731851202055,0.05521,90559.0,90551.0,0.055214]
[1731851202247,7.918e-05,90560.0,90542.0,0.38290105]
[1731851202448,7.918e-05,90560.0,90557.0,0.05521]
[1731851202653,7.918e-05,90560.0,90552.0,0.3608]
[1731851202855,7.918e-05,90560.0,90559.0,0.055209]
[1731851203650,7.918e-05,90560.0,90552.0,0.3608]
[1731851203860,7.918e-05,90560.0,90557.0,0.05521]
[1731851204161,7.918e-05,90560.0,90558.0,0.05521]
[1731851205663,7.918e-05,90560.0,90552.0,0.72216]
[1731851205664,0.055209,90559.0,90552.0,0.36136]
[1731851205850,0.05521,90558.0,90551.0,0.055214]
[1731851206051,7.918e-05,90560.0,90549.0,0.3608]
[1731851206653,7.918e-05,90560.0,90558.0,0.055209]
[1731851208464,7.918e-05,90560.0,90559.0,0.11042524]
[1731851210065,7.918e-05,90560.0,90559.0,0.68042524]
[1731851210472,7.918e-05,90560.0,90559.0,1.01170524]
[1731851210473,1.8e-07,90560.0,90559.0,1.01170524]
[1731851210760,0.0051,90571.0,90570.0,0.055203]
[1731851210962,0.1,90600.0,90592.0,0.055189]
[1731851211663,0.1,90600.0,90589.0,0.055191]
[1731851211664,0.00012347,90599.0,90589.0,0.055191]
[1731851211863,0.055187,90596.0,90591.0,0.05519]
[1731851212552,0.00012347,90599.0,90573.0,0.57]
[1731851212753,0.00012347,90599.0,90568.0,0.055204]
[1731851212754,0.0552,90574.0,90568.0,0.055204]
[1731851212966,0.3608,90589.0,90566.0,0.13844]
[1731851213164,0.055188,90595.0,90580.0,0.055196]
[1731851213363,0.055192,90588.0,90580.0,0.055196]